Cogmind - Beta 15 @@@ ROGUE MODE // 2025.08.15 @ 12:16:03 Player: Zen9890 Result: Destroyed by FN-S9Z(R) with Subdweller Laser Performance ------------- Evolutions (0) 0 Regions Visited (2) 400 Robots Destroyed (19) 95 Value Destroyed (292) 292 Prototype IDs (0) 0 Alien Tech Used (0) 0 Bonus (0) 0 TOTAL SCORE: 787 Bonus ------- None Cogmind --------- Core Integrity 0/250 Matter 297/300 Energy 100/100 System Corruption 0% Temperature Cool (6) Movement Core (150) Ox2 Location -10/Subcaves Parts ------- > --- POWER (1) -------- (None) > --- PROPULSION (2) --- (None) > --- UTILITY (2) ------ Small Storage Unit Improved Terrain Scanner > --- WEAPON (2) ------- Light Assault Rifle > --- INVENTORY (8) ---- Aluminum Leg Aluminum Leg Wheel Wheel EM Pulse Gun EM Pulse Gun Light Assault Rifle Mining Laser Peak State ------------ > --- POWER ------------ Ion Engine > --- PROPULSION ------- Aluminum Leg Aluminum Leg > --- UTILITY ---------- Small Storage Unit Improved Terrain Scanner > --- WEAPON ----------- EM Pulse Gun Small Laser > --- INVENTORY -------- Light Ion Engine Wheel Wheel EM Pulse Gun [Rating: 9] Favorites ----------- Power Light Ion Engine Engine Light Ion Engine Propulsion Aluminum Leg Leg Aluminum Leg Utility Small Storage Unit Device Improved Terrain Scanner Storage Small Storage Unit Weapon Small Laser Energy Gun Small Laser Ballistic Gun Light Assault Rifle Build | -11 -10 -10 ------- Run | Yrd Mat Sub Slots Evolved . | . . . Power . | . . . Propulsion . | . . . Utility . | . . . Weapon . | . . . Parts Attached 15 | 8 7 . Power 5 | 2 3 . Engine 5 | 2 3 . Core . | . . . Reactor . | . . . Propulsion 3 | 2 1 . Treads . | . . . Leg 3 | 2 1 . Wheel . | . . . Hover . | . . . Flight . | . . . Utility 2 | 2 . . Device 1 | 1 . . Storage 1 | 1 . . Processor . | . . . Hackware . | . . . Protection . | . . . Artifact . | . . . Weapon 5 | 2 3 . Energy Gun 3 | 2 1 . Energy Cannon . | . . . Ballistic Gun 2 | . 2 . Ballistic Cannon . | . . . Launcher . | . . . Special Weapon . | . . . Impact Weapon . | . . . Slashing Weapon . | . . . Piercing Weapon . | . . . Special Melee Weapon . | . . . Unidentified Prototypes . | . . . Parts Lost 4 | . . 4 Power 1 | . . 1 Propulsion 2 | . . 2 Utility . | . . . Weapon 1 | . . 1 Highest Loss Streak 4 | . . 4 To Critical Strikes . | . . . Average Backups 5 | 3 6 8 Power . | . . . Propulsion 2 | 1 3 4 Utility . | . . . Weapon 2 | 1 2 4 Tool/Special . | . . . Unused Backups 6 | . . 6 Power . | . . . Propulsion 3 | . . 3 Utility . | . . . Weapon 3 | . . 3 Tool/Special . | . . . Average Slot Usage (%) 95 | . 95 96 Engine 13 | . 14 12 Leg 27 | . 28 26 Device 14 | . 14 14 Storage 14 | . 14 14 Energy Gun 16 | . 19 . Ballistic Gun 8 | . 4 28 Peak Build Rating 9 | 9 9 9 Average Rating 8 | 7 8 8 On Entrance 6 | . 9 9 Naked Turns . | . . . Heaviest Build 14 | 14 12 11 Greatest Support 20 | 20 20 20 Greatest Overweight (x) . | . . . Average Overweight (x) . | . . . Largest Inventory Capacity 8 | 8 8 8 Average Capacity 7 | 7 8 8 Most Carried 8 | 6 8 8 Average Carried 5 | 3 6 8 Final Capacity 8 | 8 8 8 Final Carried 8 | 5 8 8 Class Distribution -------------------- 56% | Mutant 43% | Scavenger-Mutant Dominant Class ---------------- Scavenger-Mutant | -10/Materials Scavenger-Mutant | -10/Subcaves Resources | -11 -10 -10 ----------- Run | Yrd Mat Sub Matter Collected 362 | 280 64 18 Remotely . | . . . Salvage Created 562 | 228 334 . Parts 35 | 13 22 . Haulers Intercepted . | . . . Recyclers Shooed 1 | . 1 . Parts Field Recycled . | . . . Retrieved Matter . | . . . Parts Self-Destructed . | . . . Prevented . | . . . Kills | -11 -10 -10 ------- Run | Yrd Mat Sub Combat Hostiles Destroyed 11 | . 11 . Guns 11 | . 11 . Classes Destroyed 6 | 3 3 . Worker 2 | 2 . . Tunneler 4 | 4 . . Recycler 1 | 1 . . Operator 1 | . 1 . Swarmer 6 | . 6 . Grunt 5 | . 5 . Best Kill Streak 4 | 3 4 . Combat Bots Only 4 | . 4 . Max Kills in Single Turn 1 | 1 1 . Gunslinging . | . . . Exploded . | . . . Melee . | . . . Uniques/NPCs Destroyed . | . . . Combat | -11 -10 -10 -------- Run | Yrd Mat Sub Hostile Shots Fired 113 | . 92 21 Missed 37 | . 31 6 Hits 76 | . 61 15 Projectile 76 | . 61 15 Critical Strikes 1 | . . 1 Damage Taken 869 | . 568 301 Core 262 | . 185 77 Absorbed by Shields . | . . . Core Remaining (%) 100 | 100 . . Volleys Fired 67 | 14 47 6 Largest 2 | 2 2 2 Hottest 80 | 80 80 40 Shots Fired 122 | 28 83 11 Gun 122 | 28 83 11 Cannon . | . . . Launcher . | . . . Special . | . . . Kinetic 25 | . 14 11 Thermal 60 | 14 46 . Explosive . | . . . Electromagnetic 37 | 14 23 . Robot Hit Streak 11 | 3 7 11 Robot Miss Streak 4 | 2 4 . Penetration Max . | . . . Secondary Targets 3 | . 3 . Max Gunslinging Chain 1 | . 1 . Shots Hit Robots 75 | 13 51 11 Core Hits 27 | 8 19 . Critical Kills . | . . . Critical Parts Destroyed . | . . . Critical Strikes . | . . . Melee Attacks . | . . . Impact . | . . . Slashing . | . . . Piercing . | . . . Sneak Attacks . | . . . Combat Hostiles . | . . . Follow-up Attacks . | . . . Damage Inflicted 785 | 163 609 13 Guns 785 | 163 609 13 Cannons . | . . . Explosions . | . . . Melee . | . . . Ramming . | . . . Kinetic 93 | . 80 13 Thermal 401 | 53 348 . Explosive . | . . . Electromagnetic 291 | 110 181 . Impact . | . . . Slashing . | . . . Piercing . | . . . Highest Corruption . | . . . Average Corruption . | . . . Corruption Purged . | . . . Corruption Blocked . | . . . Overload Shots . | . . . Overflow Damage . | . . . Projectiles . | . . . Explosions . | . . . Melee . | . . . Knockbacks . | . . . Impact . | . . . Kinetic . | . . . Secondary . | . . . Self-Inflicted Damage . | . . . Shots . | . . . Rammed . | . . . Targets Rammed . | . . . Kicked . | . . . Crushed . | . . . Highest Temperature 210 | 54 210 . Average Temperature 72 | 19 89 . Received Heat Transfer 252 | . 162 90 Siege Activations . | . . . Martial Activations . | . . . Shielding Activations . | . . . Robots Disrupted . | . . . Combat Hostiles . | . . . Robots Corrupted . | . . . Combat Hostiles . | . . . Parts Fried . | . . . Impact Corruptions . | . . . Robots Melted . | . . . Combat Hostiles . | . . . Parts Melted 1 | . 1 . Heat Transferred 925 | 125 800 . Parts Sabotaged . | . . . Parts Stolen . | . . . Parts Stripped . | . . . Power Chain Reactions . | . . . Alert | -11 -10 -10 ------- Run | Yrd Mat Sub Maximum Alert Level . | . . . Low Security (%) 100 | 100 100 . Level 1 . | . . . Level 2 . | . . . Level 3 . | . . . Level 4 . | . . . Level 5 . | . . . High Security . | . . . Max Security . | . . . Peak Influence 145 | 10 145 . Initial . | . . . Average 35 | 2 50 . Influence Increases 332 | 35 297 . Destroy 0b10 Robot/C 220 | . 220 . Destroy 0b10 Robot/NC 40 | 35 5 . Destroy Leader 40 | . 40 . Successful Hack 2 | . 2 . Disable Machine 15 | . 15 . Lose Combat Pursuer 15 | . 15 . Influence Decreases 332 | 35 247 50 Entered New Map 25 | . . 25 Time Decay 192 | 35 132 25 Purge Threat 115 | . 115 . Squads Dispatched 2 | . 2 . Investigation 1 | . 1 . Extermination . | . . . Reinforcement 1 | . 1 . Assault . | . . . Garrison . | . . . Intercept . | . . . Searches Triggered . | . . . Construction Impeded . | . . . Haulers Reinforced . | . . . Active Scanning Responses . | . . . Cargo Convoy Interrupts . | . . . Stealth | -11 -10 -10 --------- Run | Yrd Mat Sub Distress Signals 2 | . 2 . Communications Jammed . | . . . Distress Signals . | . . . Times Spotted 20 | . 17 3 Peak Tracking Total 7 | . 7 3 Tactical Retreats 1 | . 1 . Traps | -11 -10 -10 ------- Run | Yrd Mat Sub Traps Triggered . | . . . Indirectly . | . . . Trap Hack Attempts . | . . . Triggered . | . . . Disarmed . | . . . Reprogrammed . | . . . Reused . | . . . Traps Extracted . | . . . Installed . | . . . Triggered . | . . . Machines | -11 -10 -10 ---------- Run | Yrd Mat Sub Machines Disabled 1 | . 1 . Max in Single Turn 1 | . 1 . Machines Repaired . | . . . Machines Dismantled . | . . . Machines Sabotaged . | . . . Overloaded Fab Kills . | . . . Hacking | -11 -10 -10 --------- Run | Yrd Mat Sub Machines Accessed 2 | . 2 . Terminals 2 | . 2 . Fabricators . | . . . Repair Stations . | . . . Recycling Units . | . . . Scanalyzers . | . . . Garrison Access . | . . . Total Hacks 6 | . 6 . Successful 2 | . 2 . Failed 4 | . 4 . Catastrophic . | . . . Database Lockouts . | . . . Manual 4 | . 4 . Terminals 6 | . 6 . Fabricators . | . . . Repair Stations . | . . . Recycling Units . | . . . Scanalyzers . | . . . Garrison Access . | . . . Terminal Hacks 2 | . 2 . Record 1 | . 1 . Unreport Threat 1 | . 1 . Fabricator Hacks . | . . . Repair Station Hacks . | . . . Recycling Unit Hacks . | . . . Scanalyzer . | . . . Garrison Access Hacks . | . . . Unauthorized Hacks . | . . . Terminals . | . . . Fabricators . | . . . Repair Stations . | . . . Recycling Units . | . . . Scanalyzers . | . . . Garrison Access . | . . . Data Cores Recovered . | . . . Used . | . . . Hacking Detections 2 | . 2 . Full Trace Events 2 | . 2 . Feedback Events . | . . . Feedback Blocked . | . . . Robot Schematics Acquired . | . . . Robots Built . | . . . Authchips . | . . . Time . | . . . Total Robot Build Rating . | . . . Part Schematics Acquired . | . . . Parts Built . | . . . Authchips . | . . . Time . | . . . Total Part Build Rating . | . . . Parts Repaired . | . . . Time . | . . . Parts Recycled . | . . . Recycled Matter . | . . . Retrieved Matter . | . . . Retrieved Components . | . . . Parts Scanalyzed . | . . . Part Schematics Acquired . | . . . Parts Damaged . | . . . Bothacking | -11 -10 -10 ------------ Run | Yrd Mat Sub Used RIF Installer . | . . . Robots Hacked . | . . . Non-combat . | . . . Combat . | . . . Robot Hacks Applied . | . . . Relay Couplers Released . | . . . Fabnet Peak Effective % . | . . . Robots Rewired . | . . . Allies Hacked . | . . . Hacks Repelled . | . . . Allies | -11 -10 -10 -------- Run | Yrd Mat Sub Total Allies . | . . . Largest Group . | . . . Highest-Rated Group . | . . . Highest-Rated Ally . | . . . Total Orders . | . . . Ally Attacks . | . . . Total Damage . | . . . Kills . | . . . Allies Corrupted . | . . . Allies Melted . | . . . Intel | -11 -10 -10 ------- Run | Yrd Mat Sub Active Infowar (turns) 557 | 100 381 76 Terrain 557 | 100 381 76 Robot Analysis Total . | . . . Derelict Logs Recovered 1 | . . 1 Drone Launches . | . . . Drone Recoveries . | . . . Exploration | -11 -10 -10 ------------- Run | Yrd Mat Sub Turns Passed 634 | 177 381 76 Spaces Moved 329 | 102 176 51 Core 12 | 12 . . Treads . | . . . Legs 317 | 90 176 51 Wheels . | . . . Hover . | . . . Flight . | . . . Fastest Speed 50 | 50 120 120 Average Speed 117 | 111 120 120 Slowest Speed 120 | 120 120 120 Overloaded Moves . | . . . Propulsion Burnouts . | . . . Robots Hopped . | . . . Potential Cave-ins . | . . . Cave-ins Triggered . | . . . Exploration Rate (%) 14 | 5 32 5 Regions Visited 2 Branch Regions 1 Pre-discovered Areas 1 | . . 1 Known Exits Taken . | . . . Unknown Exits Taken 2 | 1 1 . Scrap Searched . | . . . Spaces Dug . | . . . Terrain Destroyed . | . . . Melee . | . . . Projectile . | . . . AOE . | . . . Terrain Rammed . | . . . Walls Destroyed . | . . . Machines Disabled . | . . . Actions | -11 -10 -10 --------- Run | Yrd Mat Sub Total 459 | 137 265 57 Wait 26 | . 26 . Move 327 | 101 175 51 Hop . | . . . Pick Up 17 | 13 4 . Fast Attach 2 | . 2 . Attach 8 | 8 . . Detach . | . . . Swap 6 | . 6 . Drop 6 | 1 5 . Fire 67 | 14 47 6 Melee . | . . . Ram . | . . . Kick . | . . . Crush . | . . . Escape Stasis . | . . . Rewire . | . . . Trap . | . . . Miscellaneous . | . . . Route ------- -11/Scrapyard -10/Materials (discovered 3 exits: [*Min x2] / [*Sub]) -10/Subcaves History --------- Turn | Location | Event 3 | -11/Scrapyard | Discovered new exit (range 16) 178 | -11/Scrapyard | Entered Materials 312 | -10/Materials | Build established: Mutant 426 | -10/Materials | Discovered new exit (range 16) 491 | -10/Materials | Discovered new exit (range 13) 518 | -10/Materials | Core integrity fell below 50% 553 | -10/Materials | Discovered new exit (range 5) 559 | -10/Materials | Entered Subcaves 560 | -10/Subcaves | Approached by a straggling Scientist 600 | -10/Subcaves | Learned location of Recycling (-9) 619 | -10/Subcaves | A Subdweller sparked back to life 619 | -10/Subcaves | A Subdweller sparked back to life 619 | -10/Subcaves | A Subdweller sparked back to life 623 | -10/Subcaves | Core integrity fell below 20% 635 | -10/Subcaves | Destroyed by FN-S9Z(R) with Subdweller Laser Last Messages --------------- separated from was talking about a shortcut back to the UFD." 00595_ Acquired 6 matter. 00600_ Acquired derelict log, extracted data. World map updated: -9/Recycling. SZ-DM9(c): "I think it's somewhere southeast of here" 00610_ Acquired 12 matter. 00619_ FN-S9Z(R) creaks and sparks as it begins to move. 00619_ C5-F63(R) creaks and sparks as it begins to move. 00619_ SK-X1F(R) creaks and sparks as it begins to move. 00619_ SZ-DM9(c) destroyed. 00623_ Subatomizers dissect the Wheel. 00626_ Aluminum Leg destroyed. 00629_ Lgt. Ion Engine destroyed. 00632_ Aluminum Leg destroyed. 00633_ Lgt. Assault Rifle destroyed. Map ----- +----------------------------------------------------+ | ?????????????????????????????????????????????????? | | ?????????????????????????????????????????????????? | | ??????????????????????????????????#??????????????? | | ?????????????????????????????????????????????????# | | ?????????????????????????????????????????????????? | | ??????????????????????????????????#??????????????? | | ??????????????????????????????????????#??????????? | | ??????????????????????????????????????#??????????? | | ?????????????????????????????????????????????????? | | ???????????????????????????#????#??############??? | | ??????????????????? ??? ???????###?# ##?? | | ??????????????????? ??????????## ### ## #?? | | ??????????????????# ??????????# ### ##?? | | ??????????? ###??# ??????????## #### #?## ###??? | | ?????????? ## ?????????### ##?# #?###????? | | ??????????#" "" ?????##### ## #????????? | | ??????????#" ????## ## ##????????? | | ??????????# ###### # ## ##?????????? | | ??????????# # #####?##??????????? | | ???????????# ## ##??#??????????????? | | ???????????# # < ##???????? ??????? ? | | ???????????# # #! # #??????????????? | | ??????#?##### ###=%= < #?????????????? | | ????# # # !RRR## % ? ????????? | | ?? << ## # #% ????????? | | ?? & @## ##### % ????????? | | ???????? ## ### ### #######????# ????????? | | ??????????????## #####??????#???? ????????? | | ???????????????#####??????????????? ##?????????? | | ?????????????????????????????????#???##??????????? | | ???????????#??????????#???#??????????????????????? | | ?????????????????????????????????????????????????? | | ???????????????????#??????#??????????????????????? | | ???????????????#?????????????????????????????????? | | ?????????????????????????????????????????????????? | | ?????????????#???????????????????????????????????? | | ?????????????????????????????????????????????????? | | ??????????????????????#??????????????????????????? | | ?????????????????????????????????????????????????? | | ?????????????????????#?????#?????????????????????? | | ?????????????????????????????????????????????????? | | ?????????????????????????????????????????????????? | | ?????????????????????????????????????????????????? | | ?????????????????????????????????????????????????? | | ?????????????????????????????????????????????????? | | ?????????????????????????????????????????????????? | | ?????????????????????????????????????????????????? | | ?????????????????????????????????????????????????? | | ?????????????????????????????????????????????????? | | ?????????????????????????????????????????????????? | +----------------------------------------------------+ Best States ------------- Heat Dissipation 25 Energy Generation 10 Energy Capacity 250 Matter Stores 300 Matter Capacity 300 Sight Range 16 Terrain Scan Range 16 Terrain Scan Density 10 Evasion (%) 55 Item Schematics ----------------- None Robot Schematics ------------------ None Fabricated ------------ Nothing Repaired ---------- Nothing Alien Tech Used ----------------- None Achievements -------------- None Challenges ------------ None Game ------ Seed BoltSignalInitializer Manual? 0 Play Time 00:08:33 Cumulative 14.4 hours Start 2025.08.15 @ 12:07:20 End 2025.08.15 @ 12:16:03 Sessions 1 Manual Loads 0 Difficulty Rogue Special Mode None Game No. 19 Rogue 19 Adventurer 0 Explorer 0 Win Type - Total 0 Types 0/0/0/0/0/0/0/0/0/0 Lore% 9 Gallery% 22 Achievement% 21 Wizard Run 0 Options --------- Layout 1 ASCII 0 Keyboard 0 Movement Mouse Keybinds 0 Fullscreen 1 Font 24/Smallcaps Map View 50x35 Zoom Use 0% Tactical HUD 1 Map Filters NONE Filters NONE Steam 1 RUN: 43a8f592-fd74-4afe-b1b8-4050467213f3